Cogmind - Beta 17 @@@ ROGUE MODE // 2026.08.06 @ 23:09:50 Player: LandRaider Result: Destroyed by Y-64 Sentinel with Wave Gun Performance ------------- Evolutions (4) 2000 Regions Visited (9) 1800 Robots Destroyed (32) 160 Value Destroyed (1259) 1259 Prototype IDs (2) 40 Alien Tech Used (0) 0 Bonus (200) 200 TOTAL SCORE: 5459 Bonus ------- Pacifist 200 Cogmind --------- Core Integrity 0/850 Matter 235/300 Energy 8/100 System Corruption 10% Temperature Hot (221) Movement Core (400) Ox7 Location -6/Lower Caves Parts ------- > --- POWER (2) -------- (None) > --- PROPULSION (3) --- (None) > --- UTILITY (8) ------ Large Storage Unit Improved Signal Interpreter > --- WEAPON (2) ------- Beam Rifle > --- INVENTORY (15) --- Medium Storage Unit Compact Battery (200) Hacking Suite Spear Peak State ------------ > --- POWER ------------ Improved Deuterium Engine Fission Core > --- PROPULSION ------- Carbon-fiber Leg Titanium Leg Titanium Leg > --- UTILITY ---------- Large Storage Unit Advanced Weight Redist. System Trap Scanner Improved Signal Interpreter Terrain Scanner Advanced Terrain Scan Processor Transport Network Coupler Hacking Suite > --- WEAPON ----------- Plasma Cannon Spear > --- INVENTORY -------- Improved Ion Engine Armored Wheel Gravmag System Improved Heat Sink Cooling System Medium Storage Unit Trap Scanner Core Shielding Hacking Suite Beam Rifle Light EM Pulse Cannon Advanced Beam Cannon Heavy Machine Gun Magnetic Acceleration Cannon Mini Grenade Launcher [Rating: 49] Favorites ----------- Power Neutrino Core Engine Improved Deuterium Engine Power Core Neutrino Core Propulsion Titanium Leg Treads Medium Treads Leg Titanium Leg Wheel Compact Wheel Hover Unit Gravmag System Utility Trap Scanner Device Trap Scanner Storage Large Storage Unit Processor Improved Signal Interpreter Hackware Hacking Suite Protection Core Shielding Weapon Advanced Beam Cannon Energy Gun EM Pulse Gun Energy Cannon Advanced Beam Cannon Ballistic Gun High-powered Shotgun Ballistic Cannon Magnetic Acceleration Cannon Launcher Mini Grenade Launcher Impact Weapon Mace Piercing Weapon Spear Build | -11 -10 -9 -9 -9 -8 -8 -7 -6 -6 ------- Run | Yrd Mat Mat Min Exi Min Mat Fac Fac Low Slots Evolved 8 | . . 2 . . . 2 2 2 . Power 1 | . . . . . . . 1 . . Propulsion 1 | . . . . . . 1 . . . Utility 6 | . . 2 . . . 1 1 2 . Weapon . | . . . . . . . . . . Parts Attached 54 | 7 2 8 3 . 1 13 7 3 10 Power 10 | 2 . 1 1 . . 1 2 1 2 Engine 6 | 2 . 1 1 . . . 2 . . Core 4 | . . . . . . 1 . 1 2 Reactor . | . . . . . . . . . . Propulsion 12 | 2 . 1 . . . 6 1 . 2 Treads 1 | . . . . . . . . . 1 Leg 5 | . . 1 . . . 3 1 . . Wheel 5 | 2 . . . . . 3 . . . Hover 1 | . . . . . . . . . 1 Flight . | . . . . . . . . . . Utility 17 | 1 2 2 2 . 1 4 2 1 2 Device 7 | . . 2 1 . . 2 1 . 1 Storage 3 | 1 1 . . . . 1 . . . Processor 4 | . . . 1 . 1 1 . 1 . Hackware 1 | . . . . . . . 1 . . Protection 2 | . 1 . . . . . . . 1 Artifact . | . . . . . . . . . . Weapon 15 | 2 . 4 . . . 2 2 1 4 Energy Gun 5 | 2 . 2 . . . . . . 1 Energy Cannon 4 | . . 2 . . . . 2 . . Ballistic Gun 2 | . . . . . . 1 . . 1 Ballistic Cannon 1 | . . . . . . . . . 1 Launcher 1 | . . . . . . . . . 1 Special Weapon . | . . . . . . . . . . Impact Weapon 1 | . . . . . . 1 . . . Slashing Weapon . | . . . . . . . . . . Piercing Weapon 1 | . . . . . . . . 1 . Special Melee Weapon . | . . . . . . . . . . Unidentified Prototypes 2 | . . 2 . . . . . . . Parts Lost 33 | . . 1 . . . 5 . . 27 Power 7 | . . . . . . 2 . . 5 Propulsion 9 | . . 1 . . . 2 . . 6 Utility 10 | . . . . . . . . . 10 Weapon 7 | . . . . . . 1 . . 6 Highest Loss Streak 12 | . . 1 . . . 4 . . 12 To Critical Strikes 1 | . . . . . . . . . 1 Average Backups 9 | 1 5 9 10 10 10 13 12 14 8 Power . | . 1 . 1 1 1 . . 1 . Propulsion . | 1 2 1 . . . . . 2 . Utility 4 | . . 4 5 6 6 6 5 6 4 Weapon 3 | . 1 2 3 3 3 5 5 5 3 Tool/Special . | . . . . . . . . . . Unused Backups 11 | . . 1 3 . . 3 1 . 3 Power 1 | . . . 1 . . . . . . Propulsion 1 | . . . 1 . . . . . . Utility 4 | . . . . . . 1 . . 3 Weapon 5 | . . 1 1 . . 2 1 . . Tool/Special . | . . . . . . . . . . Average Slot Usage (%) 87 | . 97 90 100 100 100 97 97 97 77 Engine 5 | . 14 11 11 11 11 7 6 6 . Core 3 | . . . . . . . 7 6 5 Treads 2 | . . . . . . . . . 4 Leg 7 | . . 5 11 11 11 14 18 20 1 Wheel 4 | . 28 14 11 11 11 10 3 . . Device 19 | . . 15 19 11 11 18 15 20 23 Storage 7 | . 14 11 11 11 11 9 7 6 6 Processor 13 | . . . 8 11 18 18 15 17 14 Hackware 1 | . . . . . . . 6 6 1 Protection 4 | . 11 11 5 11 3 . . . 4 Energy Gun 2 | . 28 21 . . . . . . . Energy Cannon 9 | . . . 22 22 22 9 6 6 7 Piercing Weapon 1 | . . . . . . . . 3 2 Peak Build Rating 49 | 6 7 17 19 19 19 29 38 49 49 Average Rating 30 | 4 6 12 17 19 18 24 33 44 36 On Entrance 19 | . 6 7 17 19 19 18 22 37 49 Avg Prop Armor Cover (%) 9 | . . 9 9 9 9 8 9 . 14 Naked Turns . | . . . . . . . . . . Heaviest Build 53 | 14 20 28 30 30 30 38 48 52 53 Greatest Support 58 | 32 32 32 22 16 16 53 49 58 58 Greatest Overweight (x) 17 | . . 1 1 1 1 2 3 . 17 Average Overweight (x) . | . . . 1 1 1 . . . 1 Largest Inventory Capacity 15 | 8 10 10 10 10 10 15 15 15 15 Average Capacity 13 | 7 8 10 10 10 10 14 15 15 15 Most Carried 15 | 4 8 10 10 10 10 15 15 15 15 Average Carried 9 | 2 5 9 9 10 10 13 12 14 8 Final Capacity 15 | 8 10 10 10 10 10 15 15 15 15 Final Carried 15 | 4 8 10 10 10 10 14 15 15 4 Class Distribution -------------------- 43% | Mutant 28% | Skirmisher 24% | Assassin Dominant Class ---------------- Mutant | -10/Materials Mutant | -9/Materials Mutant | -9/Mines Mutant | -9/Exiles Mutant | -8/Mines Mutant | -8/Materials Mutant | -7/Factory Assassin | -6/Factory Skirmisher | -6/Lower Caves Resources | -11 -10 -9 -9 -9 -8 -8 -7 -6 -6 ----------- Run | Yrd Mat Mat Min Exi Min Mat Fac Fac Low Matter Collected 1045 | 232 . 113 60 . . 181 101 . 358 Remotely . | . . . . . . . . . . Salvage Created 1441 | . . 330 157 . 24 222 101 . 607 Parts 68 | . . 28 4 . . 11 6 . 19 Haulers Intercepted 2 | . . 2 . . . . . . . Recyclers Shooed . | . . . . . . . . . . Parts Field Recycled . | . . . . . . . . . . Retrieved Matter . | . . . . . . . . . . Parts Self-Destructed 7 | . . . . . . . . . 7 Prevented . | . . . . . . . . . . Parts Restored . | . . . . . . . . . . Kills | -11 -10 -9 -9 -9 -8 -8 -7 -6 -6 ------- Run | Yrd Mat Mat Min Exi Min Mat Fac Fac Low Combat Hostiles Destroyed 28 | . . 4 6 . . 5 2 . 11 Melee 2 | . . . . . . 1 . . 1 Guns 7 | . . 4 . . . 1 . . 2 Cannons 12 | . . . 6 . . 3 2 . 1 AOE 6 | . . . . . . . . . 6 Classes Destroyed 10 | . . 4 1 . . . 3 . 2 Worker 1 | . . . . . . . 1 . . Builder 1 | . . 1 . . . . . . . Hauler 2 | . . 2 . . . . . . . Swarmer 4 | . . . 3 . . . . . 1 Grunt 14 | . . 2 3 . . 4 . . 5 Brawler 1 | . . . . . . . . . 1 Sentry 4 | . . 2 . . . 1 . . 1 Hunter 3 | . . . . . . . 1 . 2 Programmer 2 | . . . . . . . 1 . 1 Samaritan 4 | . . . . . . . . . 4 Best Kill Streak 6 | . . 3 6 . . 4 1 . 4 Combat Bots Only 4 | . . 1 3 . . 4 1 . 4 Max Kills in Single Turn 3 | . . 1 1 . . 1 1 . 3 Gunslinging . | . . . . . . . . . . Exploded 3 | . . . . . . . . . 3 Melee 1 | . . . . . . 1 . . 1 Uniques/NPCs Destroyed . | . . . . . . . . . . Combat | -11 -10 -9 -9 -9 -8 -8 -7 -6 -6 -------- Run | Yrd Mat Mat Min Exi Min Mat Fac Fac Low Hostile Shots Fired 346 | . 12 23 29 . 1 64 24 . 193 Missed 82 | . 1 7 5 . . 16 4 . 49 Hits 264 | . 11 16 24 . 1 48 20 . 144 Melee 5 | . . . . . . 4 . . 1 Projectile 259 | . 11 16 24 . 1 44 20 . 143 Critical Strikes 9 | . 1 . . . . 1 2 . 5 Actively Blocked 1 | . 1 . . . . . . . . Damage Taken 4621 | . 84 226 266 . 17 1070 310 . 2648 Core 1281 | . 24 54 80 . . 249 14 . 860 Absorbed by Shields . | . . . . . . . . . . Redirected to Shielding 71 | . 2 12 5 . . . . . 52 Core Remaining (%) 81 | 100 90 . . . 66 54 98 . . Volleys Fired 97 | . 2 15 17 . 2 14 7 . 40 Largest 2 | . 2 2 2 . 2 2 2 . 2 Hottest 148 | . 90 96 136 . 136 93 136 . 148 Shots Fired 165 | . 4 30 34 . 4 28 14 . 51 Gun 70 | . 4 30 . . . 14 4 . 18 Cannon 79 | . . . 34 . 4 14 10 . 17 Launcher 16 | . . . . . . . . . 16 Special . | . . . . . . . . . . Kinetic 32 | . . . . . . 14 4 . 14 Thermal 96 | . 2 15 34 . 4 14 7 . 20 Explosive 16 | . . . . . . . . . 16 Electromagnetic 21 | . 2 15 . . . . 3 . 1 Robot Hit Streak 14 | . 1 6 6 . . 7 14 . 14 Robot Miss Streak 4 | . 2 1 3 . . 3 1 . 4 Penetration Max . | . . . . . . . . . . Secondary Targets . | . . . . . . . . . . Shots Hit Robots 108 | . 1 20 20 . . 21 11 . 35 Core Hits 65 | . . 12 7 . . 9 4 . 33 Critical Kills 1 | . . . . . . . . . 1 Critical Parts Destroyed . | . . . . . . . . . . Critical Strikes 3 | . . . . . . . . . 3 Burn 1 | . . . . . . . . . 1 Meltdown 1 | . . . . . . . . . 1 Impale 1 | . . . . . . . . . 1 Melee Attacks 22 | . . . . . . 10 6 1 5 Impact 16 | . . . . . . 10 6 . . Slashing . | . . . . . . . . . . Piercing 6 | . . . . . . . . 1 5 Sneak Attacks 4 | . . . . . . . . . 4 Combat Hostiles . | . . . . . . . . . . Follow-up Attacks . | . . . . . . . . . . Damage Inflicted 3212 | . 12 269 430 . . 453 236 . 1812 Guns 793 | . 12 269 . . . 197 54 . 261 Cannons 1052 | . . . 430 . . 185 182 . 255 Explosions 1006 | . . . . . . . . . 1006 Melee 361 | . . . . . . 71 . . 290 Ramming . | . . . . . . . . . . Kinetic 520 | . . . . . . 197 54 . 269 Thermal 1122 | . 12 98 430 . . 185 173 . 224 Explosive 1006 | . . . . . . . . . 1006 Electromagnetic 203 | . . 171 . . . . 9 . 23 Impact 71 | . . . . . . 71 . . . Slashing . | . . . . . . . . . . Piercing 290 | . . . . . . . . . 290 Highest Corruption 10 | . . . . . . . . . 10 Average Corruption 1 | . . . . . . . . . 1 Corruption Purged . | . . . . . . . . . . Corruption Blocked . | . . . . . . . . . . Effects 17 | . . . . . . . . . 17 Message Errors 2 | . . . . . . . . . 2 Matter Fused 5 | . . . . . . . . . 5 Heat Flow Errors 3 | . . . . . . . . . 3 Energy Discharges 1 | . . . . . . . . . 1 Data Loss (minor) 4 | . . . . . . . . . 4 Misfires 1 | . . . . . . . . . 1 Alerts 1 | . . . . . . . . . 1 Overload Shots . | . . . . . . . . . . Overflow Damage 58 | . . . 2 . . . . . 56 Projectiles 2 | . . . 2 . . . . . . Explosions . | . . . . . . . . . . Melee 56 | . . . . . . . . . 56 Knockbacks 1 | . . . . . . 1 . . . Impact 1 | . . . . . . 1 . . . Kinetic . | . . . . . . . . . . Secondary . | . . . . . . . . . . Self-Inflicted Damage 124 | . . . . . . . . . 124 Shots 4 | . . . . . . . . . 4 Rammed . | . . . . . . . . . . Targets Rammed . | . . . . . . . . . . Kicked . | . . . . . . . . . . Crushed . | . . . . . . . . . . Highest Temperature 333 | . 30 159 333 . 72 326 216 . 249 Average Temperature 102 | . 17 57 149 . 39 168 81 . 44 Received Heat Transfer 1074 | . . 84 123 . 9 405 . . 453 Effects 2 | . . . . . . 2 . . . Energy Bleed 1 | . . . . . . 1 . . . Damage (minor) 1 | . . . . . . 1 . . . Siege Activations . | . . . . . . . . . . Martial Activations . | . . . . . . . . . . Shielding Activations . | . . . . . . . . . . Robots Disrupted . | . . . . . . . . . . Combat Hostiles . | . . . . . . . . . . Robots Corrupted . | . . . . . . . . . . Combat Hostiles . | . . . . . . . . . . Parts Fried . | . . . . . . . . . . Impact Corruptions . | . . . . . . . . . . Robots Melted 1 | . . . . . . . . . 1 Combat Hostiles 1 | . . . . . . . . . 1 Parts Melted 7 | . . . 3 . . 1 1 . 2 Heat Transferred 2274 | . 37 259 777 . . 333 300 . 568 Parts Sabotaged . | . . . . . . . . . . Parts Stolen . | . . . . . . . . . . Parts Stripped . | . . . . . . . . . . Power Chain Reactions . | . . . . . . . . . . Alert | -11 -10 -9 -9 -9 -8 -8 -7 -6 -6 ------- Run | Yrd Mat Mat Min Exi Min Mat Fac Fac Low Maximum Alert Level . | . . . . . . . . . . Low Security (%) 100 | 100 100 100 100 . 100 100 100 100 . Level 1 . | . . . . . . . . . . Level 2 . | . . . . . . . . . . Level 3 . | . . . . . . . . . . Level 4 . | . . . . . . . . . . Level 5 . | . . . . . . . . . . High Security . | . . . . . . . . . . Max Security . | . . . . . . . . . . Peak Influence 96 | . 29 69 96 . 15 60 30 24 . Initial 26 | . . 7 26 . . 5 4 . . Average 15 | . 2 31 40 . . 21 4 1 . Influence Increases 850 | . 29 164 140 . 30 161 71 25 230 Destroy 0b10 Robot/C 560 | . . 80 120 . . 100 40 . 220 Destroy 0b10 Robot/NC 20 | . . 15 . . . . 5 . . Destroy Leader 94 | . . 24 20 . . 20 20 . 10 Successful Hack 62 | . 14 15 . . . 5 4 24 . Disable Machine 15 | . . . . . 15 . . . . Destroy Structure 9 | . . . . . . 6 2 1 . Lose Combat Pursuer 90 | . 15 30 . . 15 30 . . . Influence Decreases 830 | . 10 114 179 30 15 166 81 25 210 Entered New Map 101 | . . 12 43 30 . 10 6 . . Time Decay 615 | . 10 102 136 . 15 120 75 25 132 Lost Part 114 | . . . . . . 36 . . 78 Squads Dispatched 5 | . . . . . . 2 1 2 . Investigation 4 | . . . . . . 2 1 1 . Extermination . | . . . . . . . . . . Reinforcement 1 | . . . . . . . . 1 . Assault . | . . . . . . . . . . Garrison . | . . . . . . . . . . Intercept . | . . . . . . . . . . Searches Triggered . | . . . . . . . . . . Construction Impeded . | . . . . . . . . . . Haulers Reinforced . | . . . . . . . . . . Active Scanning Responses . | . . . . . . . . . . Cargo Convoy Interrupts . | . . . . . . . . . . Stealth | -11 -10 -9 -9 -9 -8 -8 -7 -6 -6 --------- Run | Yrd Mat Mat Min Exi Min Mat Fac Fac Low Distress Signals . | . . . . . . . . . . Communications Jammed . | . . . . . . . . . . Distress Signals . | . . . . . . . . . . Times Spotted 46 | . 4 6 6 . 3 12 2 . 13 Peak Tracking Total 6 | . 3 2 3 . 3 6 1 1 5 Tactical Retreats 4 | . 1 1 . . 1 1 . . . Traps | -11 -10 -9 -9 -9 -8 -8 -7 -6 -6 ------- Run | Yrd Mat Mat Min Exi Min Mat Fac Fac Low Traps Triggered . | . . . . . . . . . . Indirectly . | . . . . . . . . . . Trap Hack Attempts . | . . . . . . . . . . Triggered . | . . . . . . . . . . Disarmed . | . . . . . . . . . . Reprogrammed . | . . . . . . . . . . Reused . | . . . . . . . . . . Traps Extracted . | . . . . . . . . . . Installed . | . . . . . . . . . . Triggered . | . . . . . . . . . . Machines | -11 -10 -9 -9 -9 -8 -8 -7 -6 -6 ---------- Run | Yrd Mat Mat Min Exi Min Mat Fac Fac Low Machines Disabled 1 | . . . . . 1 . . . . Max in Single Turn 1 | . . . . . 1 . . . . Machines Repaired . | . . . . . . . . . . Machines Dismantled . | . . . . . . . . . . Machines Sabotaged . | . . . . . . . . . . Overloaded Fab Kills . | . . . . . . . . . . Hacking | -11 -10 -9 -9 -9 -8 -8 -7 -6 -6 --------- Run | Yrd Mat Mat Min Exi Min Mat Fac Fac Low Machines Accessed 11 | . 1 3 . 1 . 3 2 1 . Terminals 8 | . 1 2 . . . 3 1 1 . Fabricators . | . . . . . . . . . . Repair Stations . | . . . . . . . . . . Recycling Units 1 | . . . . . . . 1 . . Scanalyzers 1 | . . 1 . . . . . . . Garrison Access . | . . . . . . . . . . Total Hacks 31 | . 1 10 . 1 . 8 5 6 . Successful 17 | . 1 4 . 1 . 6 3 2 . Failed 13 | . . 5 . . . 2 2 4 . Catastrophic . | . . . . . . . . . . Database Lockouts 1 | . . 1 . . . . . . . Manual 13 | . 2 4 . . . 6 . 1 . Terminals 21 | . 1 5 . . . 8 1 6 . Fabricators . | . . . . . . . . . . Repair Stations . | . . . . . . . . . . Recycling Units 4 | . . . . . . . 4 . . Scanalyzers 5 | . . 5 . . . . . . . Garrison Access . | . . . . . . . . . . Terminal Hacks 7 | . . 1 . 1 . 3 1 1 . Record 5 | . . 1 . 1 . 3 . . . Robot Analysis 1 | . . . . . . . . 1 . Open DSF 1 | . . . . . . . 1 . . Fabricator Hacks . | . . . . . . . . . . Repair Station Hacks . | . . . . . . . . . . Recycling Unit Hacks 2 | . . . . . . . 2 . . Process 1 | . . . . . . . 1 . . Retrieve Components 1 | . . . . . . . 1 . . Scanalyzer 1 | . . 1 . . . . . . . Retrieve Study 1 | . . 1 . . . . . . . Garrison Access Hacks . | . . . . . . . . . . Unauthorized Hacks 7 | . 1 2 . . . 3 . 1 . Terminals 7 | . 1 2 . . . 3 . 1 . Track 2 | . . . . . . 2 . . . Botnet 5 | . 1 2 . . . 1 . 1 . Fabricators . | . . . . . . . . . . Repair Stations . | . . . . . . . . . . Recycling Units . | . . . . . . . . . . Scanalyzers . | . . . . . . . . . . Garrison Access . | . . . . . . . . . . Data Cores Recovered . | . . . . . . . . . . Used . | . . . . . . . . . . Hacking Detections 8 | . 1 2 . . . 3 1 1 . Full Trace Events 6 | . . 2 . . . 2 1 1 . Feedback Events . | . . . . . . . . . . Feedback Blocked . | . . . . . . . . . . Robot Schematics Acquired . | . . . . . . . . . . Robots Built . | . . . . . . . . . . Authchips . | . . . . . . . . . . Time . | . . . . . . . . . . Total Robot Build Rating . | . . . . . . . . . . Part Schematics Acquired . | . . . . . . . . . . Parts Built . | . . . . . . . . . . Authchips . | . . . . . . . . . . Time . | . . . . . . . . . . Total Part Build Rating . | . . . . . . . . . . Part Studies Acquired 1 | . . 1 . . . . . . . Parts Repaired . | . . . . . . . . . . Time . | . . . . . . . . . . Parts Recycled . | . . . . . . . . . . Recycled Matter 11 | . . . . . . . 11 . . Retrieved Matter . | . . . . . . . . . . Retrieved Components . | . . . . . . . . . . Parts Scanalyzed . | . . . . . . . . . . Part Schematics Acquired . | . . . . . . . . . . Parts Damaged . | . . . . . . . . . . Bothacking | -11 -10 -9 -9 -9 -8 -8 -7 -6 -6 ------------ Run | Yrd Mat Mat Min Exi Min Mat Fac Fac Low Used RIF Installer . | . . . . . . . . . . Robots Hacked . | . . . . . . . . . . Non-combat . | . . . . . . . . . . Combat . | . . . . . . . . . . Robot Hacks Applied . | . . . . . . . . . . Relay Couplers Released . | . . . . . . . . . . Fabnet Peak Effective % . | . . . . . . . . . . Robots Rewired . | . . . . . . . . . . Allies Hacked . | . . . . . . . . . . Hacks Repelled . | . . . . . . . . . . Allies | -11 -10 -9 -9 -9 -8 -8 -7 -6 -6 -------- Run | Yrd Mat Mat Min Exi Min Mat Fac Fac Low Total Allies . | . . . . . . . . . . Largest Group . | . . . . . . . . . . Highest-Rated Group . | . . . . . . . . . . Highest-Rated Ally . | . . . . . . . . . . Total Orders . | . . . . . . . . . . Ally Attacks . | . . . . . . . . . . Total Damage . | . . . . . . . . . . Kills . | . . . . . . . . . . Allies Corrupted . | . . . . . . . . . . Allies Melted . | . . . . . . . . . . Intel | -11 -10 -9 -9 -9 -8 -8 -7 -6 -6 ------- Run | Yrd Mat Mat Min Exi Min Mat Fac Fac Low Active Infowar (turns) 4511 | . . 234 314 329 194 326 443 328 2343 Terrain 4028 | . . 234 235 . 145 326 443 328 2317 Traps 3266 | . . . . . . 152 443 328 2343 T.N.C. 2229 | . . . 251 329 194 326 443 328 358 Robot Analysis Total 1 | . . . . . . . . 1 . Derelict Logs Recovered 2 | . . . 2 . . . . . . Drone Launches . | . . . . . . . . . . Drone Recoveries . | . . . . . . . . . . Exploration | -11 -10 -9 -9 -9 -8 -8 -7 -6 -6 ------------- Run | Yrd Mat Mat Min Exi Min Mat Fac Fac Low Turns Passed 4723 | 59 124 258 314 329 194 326 443 328 2348 Spaces Moved 2432 | 49 102 166 180 314 177 195 260 187 802 Core 57 | 6 . . . . . . . . 51 Treads 484 | . . . . . . . . . 484 Legs 526 | . . . . . . 58 206 187 75 Wheels 1365 | 43 102 166 180 314 177 137 54 . 192 Hover . | . . . . . . . . . . Flight . | . . . . . . . . . . Fastest Speed 50 | 50 100 100 105 105 105 90 120 126 120 Average Speed 147 | 93 100 108 105 105 105 108 141 126 216 Slowest Speed 900 | 100 100 115 105 105 105 200 200 126 900 Overloaded Moves . | . . . . . . . . . . Propulsion Burnouts . | . . . . . . . . . . Robots Hopped . | . . . . . . . . . . Potential Cave-ins . | . . . . . . . . . . Cave-ins Triggered 1 | . . . . . . 1 . . . Exploration Rate (%) 30 | 3 23 23 35 78 47 16 6 5 69 Regions Visited 9 Branch Regions 4 Pre-discovered Areas 1 | . . . 1 . . . . . . Known Exits Taken 4 | . . . . . 1 1 1 1 . Unknown Exits Taken 5 | 1 1 1 1 1 . . . . . Scrap Searched 2 | . . . 1 . . . . . 1 Spaces Dug 9 | . . . . . . 6 2 1 . Terrain Destroyed 98 | . . . . . . 6 2 1 89 Melee 9 | . . . . . . 6 2 1 . Projectile 1 | . . . . . . . . . 1 AOE 88 | . . . . . . . . . 88 Terrain Rammed . | . . . . . . . . . . Walls Destroyed . | . . . . . . . . . . Machines Disabled . | . . . . . . . . . . Actions | -11 -10 -9 -9 -9 -8 -8 -7 -6 -6 --------- Run | Yrd Mat Mat Min Exi Min Mat Fac Fac Low Total 3362 | 58 119 215 270 313 180 263 311 278 1355 Wait 678 | . 11 10 64 . . 9 14 82 488 Move 2423 | 48 101 165 179 313 176 194 259 186 802 Hop . | . . . . . . . . . . Pick Up 39 | 3 3 8 3 . . 12 5 2 3 Fast Attach 20 | 6 1 6 . . . 4 . 2 1 Attach 27 | . . 1 . . . 3 8 1 14 Detach 4 | . . . . . . . 4 . . Swap 26 | 1 1 1 4 . 2 8 6 1 2 Drop 26 | . . 9 3 . . 9 2 3 . Fire 97 | . 2 15 17 . 2 14 7 . 40 Melee 22 | . . . . . . 10 6 1 5 Ram . | . . . . . . . . . . Kick . | . . . . . . . . . . Crush . | . . . . . . . . . . Escape Stasis . | . . . . . . . . . . Rewire . | . . . . . . . . . . Trap . | . . . . . . . . . . Miscellaneous . | . . . . . . . . . . Route ------- -11/Scrapyard -10/Materials -9/Materials -9/Mines (discovered 2 exits: *Mat / *Exi) -9/Exiles (discovered 2 exits: [*Min x2]) -8/Mines -8/Materials -7/Factory -6/Factory -6/Lower Caves History --------- Turn | Location | Event 6 | -11/Scrapyard | Discovered new exit (range 15) 60 | -11/Scrapyard | Entered Materials 161 | -10/Materials | Discovered new exit (range 9) 184 | -10/Materials | Entered another Materials area 184 | -9/Materials | Evolved 2 slots: Utility x2 333 | -9/Materials | Build established: Mutant 381 | -9/Materials | Central database locked down 418 | -9/Materials | Discovered new exit (range 5) 442 | -9/Materials | Entered Mines 475 | -9/Mines | Found a hidden stash of uninstalled traps 523 | -9/Mines | Learned location of Recycling (-8) 530 | -9/Mines | Learned Materials terminal intel 532 | -9/Mines | Discovered new exit (range 5) 752 | -9/Mines | Deemed a non-threat by the Exiles lab entrance 752 | -9/Mines | Discovered new exit (range 5) 756 | -9/Mines | Entered Exiles 756 | -9/Exiles | Found Exiles lab abandoned 770 | -9/Exiles | Discovered new exit (range 15) 1067 | -9/Exiles | Discovered new exit (range 12) 1085 | -9/Exiles | Entered Mines 1273 | -8/Mines | Discovered new exit (range 7) 1278 | -8/Mines | Identified exit to Materials 1279 | -8/Mines | Entered Materials 1279 | -8/Materials | Evolved 2 slots: Propulsion x1, Utility x1 1280 | -8/Materials | Loaded intel: 12 terminal locations 1492 | -8/Materials | Crushed by falling debris 1524 | -8/Materials | Discovered new exit (range 16) 1604 | -8/Materials | Identified exit to Factory 1605 | -8/Materials | Entered Factory 1605 | -7/Factory | Evolved 2 slots: Power x1, Utility x1 1611 | -7/Factory | Lost 4 parts (1p2n1w) 1631 | -7/Factory | Identified exit to DSF 2018 | -7/Factory | Discovered new exit (range 13) 2047 | -7/Factory | Identified exit to Factory 2048 | -7/Factory | Entered another Factory area 2048 | -6/Factory | Evolved 2 slots: Utility x2 2357 | -6/Factory | Discovered new exit (range 15) 2373 | -6/Factory | Identified exit to Lower Caves 2376 | -6/Factory | Entered Lower Caves 2433 | -6/Lower Caves | Build established: Assassin 2715 | -6/Lower Caves | Ambushed by research squad 2775 | -6/Lower Caves | Lost 9 parts (2p3n2u2w) 2784 | -6/Lower Caves | Core integrity fell below 50% 2822 | -6/Lower Caves | Lost 3 parts (1p1u1w) 3607 | -6/Lower Caves | Build established: Skirmisher 4361 | -6/Lower Caves | Attracted the attention of an 0b10 checkpoint 4653 | -6/Lower Caves | Attracted the attention of an 0b10 outpost 4699 | -6/Lower Caves | System corruption reached 10% 4714 | -6/Lower Caves | Core integrity fell below 20% 4724 | -6/Lower Caves | Destroyed by Y-64 Sentinel with Wave Gun Last Messages --------------- 04698_ Trap Scanner destroyed. 04698_ System corrupted by crushing effect (+5). 04698_ System corrupted by crushing effect (+4). 04702_ System corrupted: Component data lost. 04702_ B-48 Gladiator destroyed. 04702_ Core Shielding destroyed. 04702_ Penetrated by Slug. 04705_ Critical hit (Burn: +37). 04705_ Penetrated by Slug. 04709_ Hvy. Laser fries itself beyond repair. 04713_ Penetrated by Slug. 04714_ Magnetic Acceleration Cannon destroyed. 04715_ Y-64 Sentinel suffers critical hit (Burn). 04716_ Penetrated by Slug. 04719_ Trap Scanner destroyed. 04720_ Y-64 Sentinel heat short circuits Imp. Treads. 04721_ System corrupted: Heat flow error (+249). 04721_ Penetrated by Slug. 04722_ Y-64 Sentinel heat damages Adv. Heat Sink. 04723_ G-50 Soldier destroyed. Map ----- +----------------------------------------------------+ | ??????????????????????### #?#### ######? | | ????????????????????????? ?###### ##### | | ????????????????????? ? #### ##### | | ???????????????????????#####?#?#### #### | | ???????????????????????"""??"# ?### ## | | ???????????????????????? #? #### | | ?????????????????????????## ##### | | ?????????????????????????# ###### | | ???????????????????????? # ####### | | ????????????????????? ??? # ########## ## | | ???????????????????????## ### ###?######!! ## | | ????????????????????#?? ? ##?#### ## | | ????????????????????? ? ## ####### ## | | ?????????????????? ? #?## ####### ## | | ????????????????? ? ? ??## ####### ####### | | ??????????????? ??#??### ##### ###### | | ??????????????? ? ?# ##### ###### | | ??????????????# ?? ? ?## #### ### | | ????????????????##??##### #### | | ????????????? #?##?#### ### | | ???????????? ?##??#### | | ????????????? #??#### ### | | ??????????????#???#?### ############ # | | ????????????##?#?#?#?#####[Y############# # | | ?????????????#??###### ##%%############ | | ????????????#?##?#?## @!% ;####### | | ?????????????#?#?#?# ######## | | ??????????????##?# ######## ### | | ???????????????## ## ############## #### | | ????????????????# ###### ##################### | | ????????????###?####;#??##?####################### | | ?????????????#?#??# #####?######################## | | ??????????????#?## ####??#?###?################### | | ??????????????#??####?#???#?###############?##?### | | ????????????????##???###??##?####?########?##??#?# | | ?????????????????####?##?#??#####?#?###?#######?#? | | ??????????????????###?#??##?###???######??######?? | | ?????????????????????##??##?#??#?#####?#?#?###??#? | | ????????????????????##?##??#?##??##?#???###????#?# | | ?????????????????????????#???????????#??#?????##?? | | ?????????????????????????????????????????????????? | | ?????????????????????????????????????????????????? | | ?????????????????????????????????????????????????? | | ?????????????????????????????????????????????????? | | ?????????????????????????????????????????????????? | | ?????????????????????????????????????????????????? | | | | | | | | | +----------------------------------------------------+ Best States ------------- Heat Dissipation 59 Energy Generation 29 Energy Capacity 500 Matter Stores 300 Matter Capacity 300 Sight Range 16 Terrain Scan Range 14 Terrain Scan Density 210 Additional Mass Support 9 Core Shielding 20 Power Shielding 33 Evasion (%) 55 Recoil Reduction 1 Offensive Hacking 10 Item Schematics ----------------- None Robot Schematics ------------------ None Fabricated ------------ Nothing Repaired ---------- Nothing Studied --------- Com. Wheel | -9/Materials | Hacked Alien Tech Used ----------------- None Achievements -------------- None Challenges ------------ None Game ------ Seed ImpactBehemothDoublenader Manual? 0 Play Time 00:47:42 Cumulative 39.6 hours Start 2026.08.06 @ 21:18:30 End 2026.08.06 @ 23:09:50 Sessions 1 Manual Loads 0 Difficulty Rogue Special Mode None Game No. 35 Rogue 33 Adventurer 2 Explorer 0 Win Type - Total 0 Types 0/0/0/0/0/0/0/0/0/0 Lore% 26 Gallery% 25 Achievement% 22 Wizard Run 0 Options --------- Layout 0 ASCII 0 Keyboard 0 Movement Mouse Keybinds 0 Fullscreen 2 Font 24/Smallcaps Map View 76x50 Zoom Use 0% Tactical HUD 1 Map Filters NONE Filters NONE Steam 1 RUN: 2e8daec3-1852-403d-a852-4ac31d76b486